Cogmind - Beta 16.1 @@@ ROGUE MODE // 2026.04.16 @ 03:12:54 Player: Maelyn Result: Destroyed by G-73 Enforcer with Heavy Laser Performance ------------- Evolutions (6) 3000 Regions Visited (16) 3200 Robots Destroyed (100) 500 Value Destroyed (2837) 2837 Prototype IDs (34) 680 Alien Tech Used (0) 0 Bonus (333) 333 TOTAL SCORE: 10550 Bonus ------- Follower Combat Kills 33 Aligned with FarCom 300 Cogmind --------- Core Integrity 0/1150 Matter 300/300 Energy 60/160 System Corruption 1% Temperature Cool (18) Movement Hovering (70) Location -4/Armory Parts ------- > --- POWER (2) -------- Light Nuclear Core > --- PROPULSION (6) --- Gyrokinetic Inverter > --- UTILITY (9) ------ Enhanced Optical Array Experimental Signal Interpreter Transport Network Coupler Hacking Suite > --- WEAPON (2) ------- Chainsword > --- INVENTORY (5) ---- Wheel VTOL Module VTOL Module Gamma Bomb Array Advanced Datajack Peak State ------------ > --- POWER ------------ Micro Nuclear Core Micro Fission Core > --- PROPULSION ------- Gravmag System Gyrokinetic Inverter Gyrokinetic Inverter Cooled Cesium-ion Thruster Field Propulsion Drive > --- UTILITY ---------- Power Amplifier Improved Sensor Array Improved Signal Interpreter Advanced Terrain Scan Processor Hacking Suite System Shield Skeleton Box > --- WEAPON ----------- Power Sword Lance > --- INVENTORY -------- Micro Nuclear Core Nuclear Pulse Thruster System Shield Plasma Rifle Improved Grenade Launcher [Rating: 78] Favorites ----------- Power Nuclear Core Engine Ion Engine Power Core Nuclear Core Propulsion Light Treads Treads Light Treads Leg Aluminum Leg Hover Unit Gyrokinetic Inverter Flight Unit Cesium-ion Thruster Utility Hacking Suite Device Skeleton Box Storage Large Storage Unit Processor Transport Network Coupler Hackware Hacking Suite Protection Improved Light Armor Plating Weapon Ion Cannon Energy Gun Medium Laser Energy Cannon Ion Cannon Ballistic Gun Gauss Rifle Ballistic Cannon Advanced Assault Cannon Launcher Improved Grenade Launcher Special Weapon Enhanced Flamer Impact Weapon Heavy Mace Slashing Weapon Great Axe Piercing Weapon Lance Special Melee Weapon Advanced Datajack Build | -11 -10 -10 -9 -9 -9 -8 -8 -7 -7 -7 -6 -5 -5 -5 -4 -4 ------- Run | Yrd Mat Min Mat Min Exi Min Mat Fac Low Low Fac Fac Upp Upp Fac Arm Slots Evolved 12 | . . . 2 . . . 2 2 . . 2 2 . . 2 . Power 1 | . . . . . . . . . . . . 1 . . . . Propulsion 4 | . . . 1 . . . 1 1 . . . . . . 1 . Utility 7 | . . . 1 . . . 1 1 . . 2 1 . . 1 . Weapon . | . . . . . . . . . . . . . . . . . Parts Attached 122 | 6 4 . 18 . . . 19 12 4 . 21 19 6 1 4 8 Power 16 | 1 1 . 2 . . . 3 2 . . 2 3 1 . . 1 Engine 7 | 1 1 . 1 . . . 2 1 . . 1 . . . . . Core 9 | . . . 1 . . . 1 1 . . 1 3 1 . . 1 Reactor . | . . . . . . . . . . . . . . . . . Propulsion 36 | 2 2 . 9 . . . 6 1 1 . 4 9 . . . 2 Treads 11 | 2 . . 9 . . . . . . . . . . . . . Leg 2 | . 2 . . . . . . . . . . . . . . . Wheel . | . . . . . . . . . . . . . . . . . Hover 7 | . . . . . . . . . . . 4 3 . . . . Flight 16 | . . . . . . . 6 1 1 . . 6 . . . 2 Utility 36 | 1 1 . 4 . . . 5 4 1 . 7 5 3 1 2 2 Device 8 | . . . 2 . . . 2 . . . 2 . . . . 2 Storage 5 | 1 1 . 1 . . . 1 . . . . . 1 . . . Processor 9 | . . . 1 . . . 1 . . . 3 3 . . 1 . Hackware 7 | . . . . . . . . 2 . . 1 1 2 1 . . Protection 7 | . . . . . . . 1 2 1 . 1 1 . . 1 . Artifact . | . . . . . . . . . . . . . . . . . Weapon 34 | 2 . . 3 . . . 5 5 2 . 8 2 2 . 2 3 Energy Gun 7 | 2 . . 1 . . . 1 1 . . 1 . 1 . . . Energy Cannon 5 | . . . 2 . . . 1 2 . . . . . . . . Ballistic Gun 1 | . . . . . . . . . . . 1 . . . . . Ballistic Cannon 5 | . . . . . . . . . . . 5 . . . . . Launcher 3 | . . . . . . . 1 . . . . . 1 . . 1 Special Weapon 1 | . . . . . . . . . 1 . . . . . . . Impact Weapon 2 | . . . . . . . 2 . . . . . . . . . Slashing Weapon 6 | . . . . . . . . 2 1 . . 1 . . . 2 Piercing Weapon 3 | . . . . . . . . . . . 1 1 . . 1 . Special Melee Weapon 1 | . . . . . . . . . . . . . . . 1 . Unidentified Prototypes 9 | . . . 1 . . . 2 2 . . 2 1 . . 1 . Parts Lost 60 | . 2 . 1 1 . . 9 3 . 1 9 18 6 . 4 6 Power 7 | . . . . . . . 2 . . . . 4 1 . . . Propulsion 21 | . 2 . . . . . 4 2 . 1 3 6 1 . . 2 Utility 22 | . . . 1 . . . 1 1 . . 5 6 2 . 3 3 Weapon 10 | . . . . 1 . . 2 . . . 1 2 2 . 1 1 Highest Loss Streak 8 | . 1 . 1 1 . . 7 1 . 1 3 8 4 . 4 6 To Critical Strikes . | . . . . . . . . . . . . . . . . . Average Backups 6 | 3 5 7 10 12 12 13 7 4 4 4 4 4 1 . . 2 Power . | . 1 3 1 1 1 1 . . . . . . . . . . Propulsion 1 | 1 1 . 4 5 5 5 2 . . . . . . . . 1 Utility 2 | . . 2 3 5 5 5 3 1 3 3 1 1 1 . . . Weapon 1 | . 1 2 1 1 1 1 1 2 1 1 1 2 . . . . Tool/Special . | . . . . . . . . . . . . . . . . . Unused Backups 16 | . . . 6 . . . 2 4 1 . 1 . . . . 2 Power 3 | . . . 2 . . . . 1 . . . . . . . . Propulsion 3 | . . . 2 . . . . . . . . . . . . 1 Utility 6 | . . . 1 . . . 2 2 . . 1 . . . . . Weapon 3 | . . . 1 . . . . 1 1 . . . . . . . Tool/Special 1 | . . . . . . . . . . . . . . . . 1 Average Slot Usage (%) 79 | . 83 85 92 92 88 88 78 86 88 97 64 76 51 38 52 49 Engine 3 | . 14 14 3 . . . 5 6 7 7 3 . . . . . Core 4 | . . . 6 11 11 11 3 . . . 2 8 1 . . . Treads 10 | . 19 . 27 33 33 33 4 . . . . . . . . . Leg 1 | . 7 28 3 . . . . . . . . . . . . . Hover 3 | . . . . . . . . . . . 14 10 8 5 5 5 Flight 9 | . . . . . . . 19 31 32 36 3 9 . . . 5 Device 8 | . . . 10 11 11 11 7 14 15 15 12 7 . . . 4 Storage 4 | . 14 14 11 11 11 11 4 . . . . . . . . . Processor 7 | . . . 7 11 11 11 15 . . . 4 11 11 11 14 15 Hackware 7 | . . . . . . . . 14 15 15 8 11 19 20 20 9 Protection 2 | . . . . . . . 4 4 7 7 3 1 . . 4 . Energy Gun 2 | . 28 28 . . . . 1 1 . . . . 3 . . . Energy Cannon 5 | . . . 21 14 11 11 1 1 . . . . . . . . Impact Weapon 1 | . . . . . . . 7 4 . . . . . . . . Slashing Weapon 1 | . . . . . . . . 2 7 7 2 3 . . . 7 Peak Build Rating 78 | 6 7 6 18 18 16 16 34 47 46 45 69 78 37 24 48 75 Average Rating 31 | 4 5 6 16 15 15 16 21 37 40 43 49 60 32 22 43 54 On Entrance 23 | . 6 6 6 18 15 16 16 32 39 45 39 64 26 21 24 30 Avg Prop Armor Cover (%) 5 | . 22 . 6 . . . . . . . . 4 9 . . 1 Naked Turns . | . . . . . . . . . . . . . . . . . Heaviest Build 40 | 14 19 19 40 40 34 34 34 28 22 22 29 26 16 . 11 9 Greatest Support 83 | 40 40 20 63 63 63 63 83 26 26 26 50 51 20 11 11 30 Greatest Overweight (x) 10 | . 4 . 1 . . . 10 1 . . 1 4 1 . . 2 Average Overweight (x) . | . 1 . . . . . . . . . . . . . . . Largest Inventory Capacity 15 | 8 10 10 15 15 15 15 15 5 5 5 5 5 5 5 5 5 Average Capacity 8 | 7 8 10 11 15 15 15 9 5 5 5 5 5 5 5 5 5 Most Carried 13 | 6 8 7 12 12 13 13 13 5 5 5 5 5 4 1 1 5 Average Carried 6 | 3 5 7 10 12 12 13 7 4 4 4 4 4 1 . . 2 Final Capacity 15 | 8 10 10 15 15 15 15 5 5 5 5 5 5 5 5 5 5 Final Carried 13 | 4 7 7 12 12 13 13 5 5 4 5 5 4 1 . 1 5 Class Distribution -------------------- 29% | Mutant 15% | Scavenger-Mutant 15% | Hacker-Mutant 12% | Hacker-Scout 12% | Hacker-Sprinter 8% | Scout 3% | Hacker-Assassin Dominant Class ---------------- Mutant | -10/Materials Mutant | -10/Mines Scavenger-Mutant | -9/Materials Mutant | -9/Mines Mutant | -9/Exiles Mutant | -8/Mines Scout | -8/Materials Hacker-Sprinter | -7/Factory Hacker-Sprinter | -7/Lower Caves Hacker-Sprinter | -7/Lower Caves Scout | -6/Factory Hacker-Scout | -5/Factory Hacker-Mutant | -5/Upper Caves Hacker-Mutant | -5/Upper Caves Hacker-Scout | -4/Factory Hacker-Scout | -4/Armory Resources | -11 -10 -10 -9 -9 -9 -8 -8 -7 -7 -7 -6 -5 -5 -5 -4 -4 ----------- Run | Yrd Mat Min Mat Min Exi Min Mat Fac Low Low Fac Fac Upp Upp Fac Arm Matter Collected 2015 | 143 145 10 190 . . . 163 161 253 7 321 359 143 . 64 56 Remotely . | . . . . . . . . . . . . . . . . . Salvage Created 3333 | 28 341 . 1016 153 . . 369 260 . . 387 382 106 . 242 49 Parts 185 | 1 20 . 62 3 . . 15 13 . . 24 21 1 . 22 3 Haulers Intercepted 8 | . 1 . 4 . . . . 1 . . 1 1 . . . . Recyclers Shooed 2 | . 1 . . 1 . . . . . . . . . . . . Parts Field Recycled . | . . . . . . . . . . . . . . . . . Retrieved Matter . | . . . . . . . . . . . . . . . . . Parts Self-Destructed 3 | . . . . . . . . . . 1 . . 1 1 . . Prevented 8 | . . . . . . . . . . . . . . 8 . . Parts Restored . | . . . . . . . . . . . . . . . . . Kills | -11 -10 -10 -9 -9 -9 -8 -8 -7 -7 -7 -6 -5 -5 -5 -4 -4 ------- Run | Yrd Mat Min Mat Min Exi Min Mat Fac Low Low Fac Fac Upp Upp Fac Arm Combat Hostiles Destroyed 68 | . 8 . 20 4 . . 14 3 . . 7 5 3 . 2 2 Melee 15 | . . . . . . . 3 2 . . 1 5 . . 2 2 Guns 9 | . 8 . . . . . . . . . . . 1 . . . Cannons 29 | . . . 17 4 . . 4 . . . 4 . . . . . AOE 9 | . . . 2 . . . 3 . . . 2 . 2 . . . Classes Destroyed 15 | 1 4 . 4 . . . . 2 . . 3 . . . 1 . Worker 6 | . . . 1 . . . 1 1 . . 1 2 . . . . Builder 7 | . 1 . . . . . 1 . . . 1 1 . . 3 . Tunneler 3 | 1 1 . 1 . . . . . . . . . . . . . Hauler 8 | . 1 . 4 . . . . 1 . . 1 1 . . . . Recycler 1 | . . . . . . . . . . . . . . . 1 . Mechanic 1 | . . . . . . . . 1 . . . . . . . . Operator 4 | . . . 2 . . . . 1 . . 1 . . . . . Watcher 1 | . . . . . . . . . . . 1 . . . . . Swarmer 23 | . 4 . 7 . . . 7 . . . . 2 . . 1 2 Grunt 25 | . 4 . 6 4 . . 4 1 . . 2 1 2 . 1 . Brawler 1 | . . . 1 . . . . . . . . . . . . . Duelist 1 | . . . . . . . . . . . 1 . . . . . Sentry 11 | . . . 7 . . . 3 . . . . . 1 . . . Hunter 1 | . . . . . . . . . . . 1 . . . . . Programmer 7 | . . . . . . . . 2 . . 3 2 . . . . Best Kill Streak 6 | 1 3 . 6 2 . . 4 2 . . 4 3 3 . 3 2 Combat Bots Only 6 | . 2 . 6 2 . . 4 2 . . 3 3 3 . 2 2 Max Kills in Single Turn 3 | 1 1 . 2 1 . . 2 1 . . 3 1 1 . 1 1 Gunslinging . | . . . . . . . . . . . . . . . . . Exploded 2 | . . . 2 . . . 1 . . . 2 . 1 . . . Melee 1 | . . . . . . . 1 1 . . 1 1 . . 1 1 Uniques/NPCs Destroyed . | . . . . . . . . . . . . . . . . . Combat | -11 -10 -10 -9 -9 -9 -8 -8 -7 -7 -7 -6 -5 -5 -5 -4 -4 -------- Run | Yrd Mat Min Mat Min Exi Min Mat Fac Low Low Fac Fac Upp Upp Fac Arm Hostile Shots Fired 839 | . 75 . 64 26 . . 190 42 4 2 70 140 50 . 95 81 Missed 278 | . 24 . 12 7 . . 67 18 4 . 26 36 22 . 32 30 Hits 561 | . 51 . 52 19 . . 123 24 . 2 44 104 28 . 63 51 Melee 1 | . . . 1 . . . . . . . . . . . . . Projectile 560 | . 51 . 51 19 . . 123 24 . 2 44 104 28 . 63 51 Critical Strikes 6 | . 1 . . . . . . 1 . . 1 . . . 3 . Part Disruptions 1 | . . . . . . . . 1 . . . . . . . . Damage Taken 9816 | . 563 . 644 238 . . 1454 425 . 29 1911 1850 592 . 1245 865 Core 3352 | . 140 . 70 25 . . 377 81 . . 507 739 256 . 813 344 Absorbed by Shields 8 | . . . . . . . . 8 . . . . . . . . Regen/Repaired (Parts) 118 | . . . . . . . . 118 . . . . . . . . Core Remaining (%) 54 | 100 . 44 . . . 76 31 . . 88 40 . . . . . Volleys Fired 239 | 6 59 . 55 22 . . 44 3 . . 39 1 10 . . . Largest 2 | 2 2 . 2 2 . . 1 1 . . 2 1 2 . . . Hottest 120 | 100 100 . 120 120 . . 68 20 . . 80 33 111 . . . Shots Fired 348 | 12 76 . 110 31 . . 44 3 . . 54 1 17 . . . Gun 119 | 12 76 . 2 . . . 1 3 . . 14 . 11 . . . Cannon 211 | . . . 108 31 . . 31 . . . 40 1 . . . . Launcher 18 | . . . . . . . 12 . . . . . 6 . . . Special . | . . . . . . . . . . . . . . . . . Kinetic 48 | . . . . . . . . . . . 47 1 . . . . Thermal 272 | 12 76 . 108 31 . . 31 3 . . . . 11 . . . Explosive 18 | . . . . . . . 12 . . . . . 6 . . . Electromagnetic 10 | . . . 2 . . . 1 . . . 7 . . . . . Robot Hit Streak 17 | 4 17 . 8 8 . . 14 . . . 7 1 7 . . . Robot Miss Streak 6 | 2 3 . 6 3 . . 2 2 . . 4 . 2 . . . Penetration Max . | . . . . . . . . . . . . . . . . . Secondary Targets . | . . . . . . . . . . . . . . . . . Shots Hit Robots 282 | 7 56 . 62 17 . . 41 24 . . 27 19 11 . 10 8 Core Hits 125 | 1 19 . 29 6 . . 22 5 . . 14 7 12 . 7 3 Critical Kills 1 | . . . 1 . . . . . . . . . . . . . Critical Parts Destroyed 3 | . . . . . . . 2 1 . . . . . . . . Critical Strikes 19 | 2 3 . 1 . . . 2 4 . . 1 4 . . 1 1 Burn 5 | 2 3 . . . . . . . . . . . . . . . Meltdown 1 | . . . 1 . . . . . . . . . . . . . Smash 3 | . . . . . . . 2 1 . . . . . . . . Sever 7 | . . . . . . . . 3 . . . 3 . . . 1 Impale 3 | . . . . . . . . . . . 1 1 . . 1 . Melee Attacks 215 | . . . . . . . 36 65 . . 17 51 . . 26 20 Impact 62 | . . . . . . . 36 26 . . . . . . . . Slashing 103 | . . . . . . . . 39 . . 11 33 . . . 20 Piercing 50 | . . . . . . . . . . . 6 18 . . 26 . Sneak Attacks 13 | . . . . . . . . 3 . . 1 5 . . 4 . Combat Hostiles . | . . . . . . . . . . . . . . . . . Follow-up Attacks 3 | . . . . . . . . 1 . . . 2 . . . . Damage Inflicted 9067 | 109 556 . 1581 407 . . 1551 1113 . . 1310 936 808 . 375 321 Guns 963 | 102 556 . 47 . . . . . . . 102 . 156 . . . Cannons 2953 | . . . 1451 392 . . 428 . . . 648 34 . . . . Explosions 1751 | . . . 80 . . . 593 . . . 426 . 652 . . . Melee 3346 | . . . . . . . 530 1113 . . 113 894 . . 375 321 Ramming 54 | 7 . . 3 15 . . . . . . 21 8 . . . . Kinetic 729 | . . . . . . . . . . . 695 34 . . . . Thermal 3591 | 102 556 . 1531 392 . . 428 . . . 426 . 156 . . . Explosive 1245 | . . . . . . . 593 . . . . . 652 . . . Electromagnetic 102 | . . . 47 . . . . . . . 55 . . . . . Impact 857 | . . . . . . . 530 327 . . . . . . . . Slashing 1725 | . . . . . . . . 786 . . . 618 . . . 321 Piercing 764 | . . . . . . . . . . . 113 276 . . 375 . Highest Corruption 21 | . 1 1 . . . . . 2 2 2 21 4 4 4 1 1 Average Corruption 7 | . 1 1 . . . . . 1 2 2 17 3 4 4 1 1 Corruption Purged . | . . . . . . . . . . . . . . . . . Corruption Blocked . | . . . . . . . . . . . . . . . . . Effects 66 | . . 1 . . . . . 2 2 2 35 7 13 1 . 3 Message Errors 9 | . . . . . . . . . . . 7 . 2 . . . Matter Fused 25 | . . . . . . . . 1 1 2 11 4 4 1 . 1 Heat Flow Errors 8 | . . . . . . . . . . . 3 2 2 . . 1 Energy Discharges 5 | . . . . . . . . . . . 3 1 1 . . . Parts Rejected 1 | . . . . . . . . 1 . . . . . . . . Parts Fused 2 | . . . . . . . . . . . 1 . 1 . . . Data Loss (minor) 7 | . . 1 . . . . . . . . 3 . 2 . . 1 Data Loss (major) 5 | . . . . . . . . . 1 . 4 . . . . . Misfires 2 | . . . . . . . . . . . 1 . 1 . . . Alerts 1 | . . . . . . . . . . . 1 . . . . . Weapon Failures 1 | . . . . . . . . . . . 1 . . . . . Overload Shots . | . . . . . . . . . . . . . . . . . Overflow Damage 817 | . . . 16 . . . 285 233 . . 44 184 16 . 28 11 Projectiles 30 | . . . 16 . . . 13 1 . . . . . . . . Explosions 67 | . . . . . . . 7 . . . 44 . 16 . . . Melee 720 | . . . . . . . 265 232 . . . 184 . . 28 11 Knockbacks 11 | . . . . 1 . . 1 3 . . 5 1 . . . . Impact 4 | . . . . 1 . . 1 2 . . . . . . . . Kinetic 6 | . . . . . . . . . . . 5 1 . . . . Secondary 1 | . . . . . . . . 1 . . . . . . . . Self-Inflicted Damage 322 | . . . 19 . . . 71 . . . 189 4 39 . . . Shots 10 | . . . 1 . . . 4 . . . 3 . 2 . . . Rammed 10 | 1 . . 3 2 . . . . . . 3 1 . . . . Targets Rammed 11 | 1 . . 4 2 . . . . . . 3 1 . . . . Kicked . | . . . . . . . . . . . . . . . . . Crushed 1 | . . . 1 . . . . . . . . . . . . . Highest Temperature 565 | 195 565 . 162 189 . . 36 44 82 155 273 189 257 . . 67 Average Temperature 76 | 86 144 . 49 102 . . 14 10 38 82 93 71 128 . . 49 Received Heat Transfer 1752 | . 246 . 141 132 . . 297 18 . 18 108 366 204 . 114 108 Effects 15 | . 12 . . . . . . . . . 3 . . . . . Shutdowns 4 | . 4 . . . . . . . . . . . . . . . Interference 4 | . 1 . . . . . . . . . 3 . . . . . Short Circuit 3 | . 3 . . . . . . . . . . . . . . . Damage (minor) 2 | . 2 . . . . . . . . . . . . . . . Damage (major) 1 | . 1 . . . . . . . . . . . . . . . Damage (core) 1 | . 1 . . . . . . . . . . . . . . . Siege Activations . | . . . . . . . . . . . . . . . . . Martial Activations . | . . . . . . . . . . . . . . . . . Shielding Activations . | . . . . . . . . . . . . . . . . . Robots Disrupted . | . . . . . . . . . . . . . . . . . Combat Hostiles . | . . . . . . . . . . . . . . . . . Robots Corrupted 6 | . . . . . . . 4 2 . . . . . . . . Combat Hostiles 5 | . . . . . . . 4 1 . . . . . . . . Parts Fried 10 | . . . . . . . 8 2 . . . . . . . . Impact Corruptions 16 | . . . . . . . 9 7 . . . . . . . . Robots Melted 1 | . . . 1 . . . . . . . . . . . . . Combat Hostiles 1 | . . . 1 . . . . . . . . . . . . . Parts Melted 11 | . 3 . 4 . . . 3 . . . 1 . . . . . Heat Transferred 6644 | 444 1887 . 2381 629 . . 703 . . . 250 . 350 . . . Parts Sabotaged . | . . . . . . . . . . . . . . . . . Parts Stolen . | . . . . . . . . . . . . . . . . . Parts Stripped . | . . . . . . . . . . . . . . . . . Power Chain Reactions 1 | . . . 1 . . . . . . . . . . . . . Alert | -11 -10 -10 -9 -9 -9 -8 -8 -7 -7 -7 -6 -5 -5 -5 -4 -4 ------- Run | Yrd Mat Min Mat Min Exi Min Mat Fac Low Low Fac Fac Upp Upp Fac Arm Maximum Alert Level 1 | . . . 1 . . . 1 . . . 1 . . . . . Low Security (%) 93 | 100 100 100 77 100 . 100 96 100 . . 91 100 . . 100 100 Level 1 6 | . . . 22 . . . 3 . . . 8 . . . . . Level 2 . | . . . . . . . . . . . . . . . . . Level 3 . | . . . . . . . . . . . . . . . . . Level 4 . | . . . . . . . . . . . . . . . . . Level 5 . | . . . . . . . . . . . . . . . . . High Security . | . . . . . . . . . . . . . . . . . Max Security . | . . . . . . . . . . . . . . . . . Peak Influence 297 | 5 61 4 297 166 . . 212 91 . . 274 132 . . 55 30 Initial 132 | . . 4 . 114 . . . 91 . . 53 132 . . . 17 Average 50 | . 25 . 84 86 . . 110 12 . . 55 29 . . 5 11 Influence Increases 3173 | 5 223 . 718 102 . . 675 179 . 135 514 259 105 . 146 112 Destroy 0b10 Robot/C 1380 | . 160 . 420 80 . . 280 60 . . 140 100 60 . 40 40 Destroy 0b10 Robot/NC 165 | 5 15 . 50 . . . 10 20 . . 25 20 . . 20 . Destroy Leader 372 | . 32 . 142 20 . . 80 22 . . 54 12 . . 10 . Allied During Kill 15 | . . . 15 . . . . . . . . . . . . . Successful Hack 77 | . . . 16 . . . . 36 . . 9 16 . . . . Disable Machine 225 | . . . 30 . . . . . . . 150 . . . . 45 Destroy Structure 219 | . 1 . 15 2 . . 50 26 . . 61 36 . . 16 12 Partial Spotted 90 | . . . 15 . . . . 15 . . 15 15 . . 15 15 Lose Combat Pursuer 630 | . 15 . 15 . . . 255 . . 135 60 60 45 . 45 . Influence Decreases 3173 | 5 211 12 424 396 . . 475 341 38 50 328 515 107 13 109 149 Entered New Map 513 | . . 8 . 180 . . . 109 15 . 32 139 6 4 . 20 Time Decay 2314 | 5 191 4 395 206 . . 385 212 23 40 251 314 101 9 79 99 Lost Part 317 | . 20 . 10 10 . . 90 20 . 10 45 52 . . 30 30 Lost Ally 29 | . . . 19 . . . . . . . . 10 . . . . Squads Dispatched 26 | . 2 . 3 . . . 2 6 . . 5 6 . . 2 . Investigation 4 | . . . 1 . . . . 1 . . 1 1 . . . . Extermination 7 | . . . . . . . . 3 . . 2 1 . . 1 . Reinforcement 15 | . 2 . 2 . . . 2 2 . . 2 4 . . 1 . Assault . | . . . . . . . . . . . . . . . . . Garrison . | . . . . . . . . . . . . . . . . . Intercept . | . . . . . . . . . . . . . . . . . Searches Triggered . | . . . . . . . . . . . . . . . . . Construction Impeded 1 | . . . . . . . 1 . . . . . . . . . Haulers Reinforced 1 | . . . . . . . . . . . . . . . 1 . Active Scanning Responses . | . . . . . . . . . . . . . . . . . Cargo Convoy Interrupts 1 | . . . . . . . . . . . 1 . . . . . Stealth | -11 -10 -10 -9 -9 -9 -8 -8 -7 -7 -7 -6 -5 -5 -5 -4 -4 --------- Run | Yrd Mat Min Mat Min Exi Min Mat Fac Low Low Fac Fac Upp Upp Fac Arm Distress Signals 11 | . 5 . 2 . . . 2 1 . . . . . . . 1 Communications Jammed . | . . . . . . . . . . . . . . . . . Distress Signals . | . . . . . . . . . . . . . . . . . Times Spotted 192 | . 16 . 34 7 . . 36 12 7 7 12 18 7 . 25 11 Peak Tracking Total 18 | . 6 . 4 3 . . 8 3 7 6 3 7 3 . 18 11 Tactical Retreats 26 | . 1 . 1 . . . 12 . . 2 3 4 1 . 2 . Traps | -11 -10 -10 -9 -9 -9 -8 -8 -7 -7 -7 -6 -5 -5 -5 -4 -4 ------- Run | Yrd Mat Min Mat Min Exi Min Mat Fac Low Low Fac Fac Upp Upp Fac Arm Traps Triggered 8 | . 1 . 1 . . . . 4 . . 1 1 . . . . Indirectly . | . . . . . . . . . . . . . . . . . Trap Hack Attempts . | . . . . . . . . . . . . . . . . . Triggered . | . . . . . . . . . . . . . . . . . Disarmed . | . . . . . . . . . . . . . . . . . Reprogrammed . | . . . . . . . . . . . . . . . . . Reused . | . . . . . . . . . . . . . . . . . Traps Extracted . | . . . . . . . . . . . . . . . . . Installed . | . . . . . . . . . . . . . . . . . Triggered . | . . . . . . . . . . . . . . . . . Machines | -11 -10 -10 -9 -9 -9 -8 -8 -7 -7 -7 -6 -5 -5 -5 -4 -4 ---------- Run | Yrd Mat Min Mat Min Exi Min Mat Fac Low Low Fac Fac Upp Upp Fac Arm Machines Disabled 15 | . . . 2 . . . . . . . 10 . . . . 3 Max in Single Turn 6 | . . . 1 . . . . . . . 6 . . . . 1 Garrison Access 3 | . . . . . . . 1 . . . 1 1 . . . . Machines Repaired . | . . . . . . . . . . . . . . . . . Machines Dismantled . | . . . . . . . . . . . . . . . . . Machines Sabotaged . | . . . . . . . . . . . . . . . . . Overloaded Fab Kills . | . . . . . . . . . . . . . . . . . Hacking | -11 -10 -10 -9 -9 -9 -8 -8 -7 -7 -7 -6 -5 -5 -5 -4 -4 --------- Run | Yrd Mat Min Mat Min Exi Min Mat Fac Low Low Fac Fac Upp Upp Fac Arm Machines Accessed 32 | . 3 . 4 . 1 . 3 6 . . 6 7 . . 2 . Terminals 22 | . 3 . 4 . . . 1 3 . . 4 5 . . 2 . Fabricators . | . . . . . . . . . . . . . . . . . Repair Stations 2 | . . . . . . . . 2 . . . . . . . . Recycling Units 2 | . . . . . . . 1 . . . . 1 . . . . Scanalyzers 1 | . . . . . . . . 1 . . . . . . . . Garrison Access 4 | . . . . . . . 1 . . . 2 1 . . . . Total Hacks 84 | . 4 . 10 . 1 . 5 31 . . 15 13 . . 5 . Successful 40 | . 3 . 3 . 1 . 2 18 . . 3 8 . . 2 . Failed 44 | . 1 . 7 . . . 3 13 . . 12 5 . . 3 . Catastrophic 11 | . . . 1 . . . 1 . . . 5 3 . . 1 . Database Lockouts . | . . . . . . . . . . . . . . . . . Manual 51 | . 4 . 8 . 1 . 2 11 . . 12 8 . . 5 . Terminals 55 | . 4 . 10 . . . 2 12 . . 12 10 . . 5 . Fabricators . | . . . . . . . . . . . . . . . . . Repair Stations 17 | . . . . . . . . 17 . . . . . . . . Recycling Units 2 | . . . . . . . 1 . . . . 1 . . . . Scanalyzers 2 | . . . . . . . . 2 . . . . . . . . Garrison Access 7 | . . . . . . . 2 . . . 3 2 . . . . Terminal Hacks 9 | . . . 2 . 1 . . 2 . . 1 2 . . 1 . Prototype ID Bank 1 | . . . . . . . . 1 . . . . . . . . Open DSF 1 | . . . . . . . . . . . . 1 . . . . Hauler Manifests 1 | . . . 1 . . . . . . . . . . . . . Registered Components 5 | . . . 1 . . . . 1 . . 1 1 . . 1 . Proto ID Catalog 1 | . . . . . 1 . . . . . . . . . . . Fabricator Hacks . | . . . . . . . . . . . . . . . . . Repair Station Hacks 13 | . . . . . . . . 13 . . . . . . . . Scan Component 7 | . . . . . . . . 7 . . . . . . . . Repair 6 | . . . . . . . . 6 . . . . . . . . Recycling Unit Hacks 2 | . . . . . . . 1 . . . . 1 . . . . Report Inventory 2 | . . . . . . . 1 . . . . 1 . . . . Scanalyzer 1 | . . . . . . . . 1 . . . . . . . . Insert Component 1 | . . . . . . . . 1 . . . . . . . . Garrison Access Hacks 3 | . . . . . . . 1 . . . 1 1 . . . . Seal Access 3 | . . . . . . . 1 . . . 1 1 . . . . Unauthorized Hacks 12 | . 3 . 1 . . . . 2 . . 1 4 . . 1 . Terminals 12 | . 3 . 1 . . . . 2 . . 1 4 . . 1 . Assimilate 1 | . . . . . . . . . . . . 1 . . . . Botnet 9 | . 3 . . . . . . 2 . . . 3 . . 1 . Operators 2 | . . . 1 . . . . . . . 1 . . . . . Fabricators . | . . . . . . . . . . . . . . . . . Repair Stations . | . . . . . . . . . . . . . . . . . Recycling Units . | . . . . . . . . . . . . . . . . . Scanalyzers . | . . . . . . . . . . . . . . . . . Garrison Access . | . . . . . . . . . . . . . . . . . Data Cores Recovered 1 | . . . . . . . . 1 . . . . . . . . Used . | . . . . . . . . . . . . . . . . . Hacking Detections 22 | . 1 . 4 . . . 2 5 . . 4 5 . . 1 . Full Trace Events 3 | . . . . . . . . 1 . . 1 1 . . . . Feedback Events . | . . . . . . . . . . . . . . . . . Feedback Blocked . | . . . . . . . . . . . . . . . . . Robot Schematics Acquired . | . . . . . . . . . . . . . . . . . Robots Built . | . . . . . . . . . . . . . . . . . Authchips . | . . . . . . . . . . . . . . . . . Time . | . . . . . . . . . . . . . . . . . Total Robot Build Rating . | . . . . . . . . . . . . . . . . . Part Schematics Acquired . | . . . . . . . . . . . . . . . . . Parts Built . | . . . . . . . . . . . . . . . . . Authchips . | . . . . . . . . . . . . . . . . . Time . | . . . . . . . . . . . . . . . . . Total Part Build Rating . | . . . . . . . . . . . . . . . . . Part Studies Acquired . | . . . . . . . . . . . . . . . . . Parts Repaired 6 | . . . . . . . . 6 . . . . . . . . Time 216 | . . . . . . . . 216 . . . . . . . . Parts Recycled . | . . . . . . . . . . . . . . . . . Recycled Matter . | . . . . . . . . . . . . . . . . . Retrieved Matter . | . . . . . . . . . . . . . . . . . Retrieved Components . | . . . . . . . . . . . . . . . . . Parts Scanalyzed . | . . . . . . . . . . . . . . . . . Part Schematics Acquired . | . . . . . . . . . . . . . . . . . Parts Damaged . | . . . . . . . . . . . . . . . . . Bothacking | -11 -10 -10 -9 -9 -9 -8 -8 -7 -7 -7 -6 -5 -5 -5 -4 -4 ------------ Run | Yrd Mat Min Mat Min Exi Min Mat Fac Low Low Fac Fac Upp Upp Fac Arm Used RIF Installer . | . . . . . . . . . . . . . . . . . Robots Hacked . | . . . . . . . . . . . . . . . . . Non-combat . | . . . . . . . . . . . . . . . . . Combat . | . . . . . . . . . . . . . . . . . Robot Hacks Applied . | . . . . . . . . . . . . . . . . . Relay Couplers Released . | . . . . . . . . . . . . . . . . . Fabnet Peak Effective % . | . . . . . . . . . . . . . . . . . Robots Rewired . | . . . . . . . . . . . . . . . . . Allies Hacked . | . . . . . . . . . . . . . . . . . Hacks Repelled . | . . . . . . . . . . . . . . . . . Allies | -11 -10 -10 -9 -9 -9 -8 -8 -7 -7 -7 -6 -5 -5 -5 -4 -4 -------- Run | Yrd Mat Min Mat Min Exi Min Mat Fac Low Low Fac Fac Upp Upp Fac Arm Total Allies 4 | . . 3 . . . . . . . . . 1 . . . . Largest Group 3 | . . 3 3 . . . . . . . . 1 . . . . Highest-Rated Group 40 | . . 40 40 . . . . . . . . 10 . . . . Highest-Rated Ally 16 | . . 16 16 . . . . . . . . 10 . . . . Total Orders . | . . . . . . . . . . . . . . . . . Ally Attacks 26 | . . . 26 . . . . . . . . . . . . . Total Damage 327 | . . . 327 . . . . . . . . . . . . . Kills 3 | . . . 3 . . . . . . . . . . . . . Allies Corrupted . | . . . . . . . . . . . . . . . . . Allies Melted . | . . . . . . . . . . . . . . . . . Intel | -11 -10 -10 -9 -9 -9 -8 -8 -7 -7 -7 -6 -5 -5 -5 -4 -4 ------- Run | Yrd Mat Min Mat Min Exi Min Mat Fac Low Low Fac Fac Upp Upp Fac Arm Active Infowar (turns) 7561 | . . . 1253 439 352 237 961 1265 184 106 640 915 541 41 403 224 Optics 1403 | . . . . . . . . . . . 36 158 541 41 403 224 Sensors 886 | . . . . . . . . . . . 435 451 . . . . Structural 2224 | . . . . . . . 464 1265 184 106 205 . . . . . T.N.C. 4917 | . . . 1253 439 352 237 961 2 . . . 464 541 41 403 224 Machine Analysis 204 | . . . . . . . . . . . 204 . . . . . Cloaking 2 | . . . . . . . . . . . . . . . . 2 Robot Analysis Total . | . . . . . . . . . . . . . . . . . Derelict Logs Recovered 4 | . . 1 . 1 . . . . 1 . . . 1 . . . Drone Launches . | . . . . . . . . . . . . . . . . . Drone Recoveries . | . . . . . . . . . . . . . . . . . Exploration | -11 -10 -10 -9 -9 -9 -8 -8 -7 -7 -7 -6 -5 -5 -5 -4 -4 ------------- Run | Yrd Mat Min Mat Min Exi Min Mat Fac Low Low Fac Fac Upp Upp Fac Arm Turns Passed 9148 | 109 523 95 1707 439 352 237 961 1291 184 106 917 1018 541 41 403 224 Spaces Moved 8925 | 50 210 80 896 240 220 149 496 1497 622 431 1271 1206 667 58 471 361 Core 120 | 3 54 . . . . . 48 . . . . 14 . . . 1 Treads 1552 | 47 65 . 787 240 220 149 44 . . . . . . . . . Legs 280 | . 91 80 109 . . . . . . . . . . . . . Wheels . | . . . . . . . . . . . . . . . . . Hover 2963 | . . . . . . . . . . . 1062 679 667 58 471 26 Flight 4010 | . . . . . . . 404 1497 622 431 209 513 . . . 334 Fastest Speed 23 | 50 120 120 120 160 160 160 26 23 24 24 27 30 61 70 70 37 Average Speed 76 | 153 165 120 162 160 160 160 90 38 25 24 55 69 76 70 70 41 Slowest Speed 550 | 160 250 120 240 160 160 160 550 107 27 27 107 250 110 70 70 150 Overloaded Moves . | . . . . . . . . . . . . . . . . . Propulsion Burnouts . | . . . . . . . . . . . . . . . . . Robots Hopped 1 | . . . . . . . . 1 . . . . . . . . Potential Cave-ins . | . . . . . . . . . . . . . . . . . Cave-ins Triggered 3 | . . . . . . . 1 . . . 2 . . . . . Exploration Rate (%) 39 | 4 34 25 61 46 60 39 45 34 87 47 32 31 81 9 15 14 Regions Visited 16 Branch Regions 9 Pre-discovered Areas 1 | . . . . 1 . . . . . . . . . . . . Known Exits Taken 2 | . . . . . . . . . . . 1 . . . 1 . Unknown Exits Taken 14 | 1 1 1 1 1 1 1 1 1 1 1 . 1 1 1 . . Scrap Searched 12 | . . 1 . . . . . . 8 1 . . 2 . . . Spaces Dug 87 | . . . . . . . 13 26 . . 15 18 . . 9 6 Terrain Destroyed 228 | . . . 12 2 . . 60 26 . . 74 18 21 . 9 6 Melee 86 | . . . . . . . 13 26 . . 14 18 . . 9 6 Projectile 23 | . . . 7 2 . . 6 . . . 8 . . . . . AOE 119 | . . . 5 . . . 41 . . . 52 . 21 . . . Terrain Rammed . | . . . . . . . . . . . . . . . . . Walls Destroyed . | . . . . . . . . . . . . . . . . . Machines Disabled . | . . . . . . . . . . . . . . . . . Actions | -11 -10 -10 -9 -9 -9 -8 -8 -7 -7 -7 -6 -5 -5 -5 -4 -4 --------- Run | Yrd Mat Min Mat Min Exi Min Mat Fac Low Low Fac Fac Upp Upp Fac Arm Total 10546 | 68 308 79 1036 263 220 148 904 2094 644 431 1389 1315 682 58 501 406 Wait 879 | . 32 . 21 . . . 294 468 10 . 16 25 . . . 13 Move 8908 | 50 209 79 895 239 219 148 495 1494 621 430 1270 1205 666 57 470 361 Hop 1 | . . . . . . . . 1 . . . . . . . . Pick Up 63 | 6 3 . 18 . 1 . 7 9 4 . 7 4 . . 1 3 Fast Attach 80 | 4 1 . 7 . . . 4 16 2 . 15 16 3 . 4 8 Attach 28 | 2 2 . 2 . . . 10 3 1 . 2 3 2 1 . . Detach 12 | . 1 . 1 . . . . 3 . 1 1 3 . . . 2 Swap 34 | . 1 . 10 . . . 6 5 1 . 6 4 1 . . . Drop 73 | . . . 23 . . . 8 14 5 . 13 9 . . . 1 Fire 239 | 6 59 . 55 22 . . 44 3 . . 39 1 10 . . . Melee 205 | . . . . . . . 36 64 . . 17 44 . . 26 18 Ram 4 | . . . . . . . . . . . 3 1 . . . . Kick . | . . . . . . . . . . . . . . . . . Crush 6 | . . . 4 2 . . . . . . . . . . . . Escape Stasis 14 | . . . . . . . . 14 . . . . . . . . Rewire . | . . . . . . . . . . . . . . . . . Trap . | . . . . . . . . . . . . . . . . . Miscellaneous . | . . . . . . . . . . . . . . . . . Route ------- -11/Scrapyard -10/Materials -10/Mines -9/Materials (discovered 4 exits: *Mat x2 / [*Min x2]) -9/Mines (discovered 3 exits: *Mat / *Exi / [*Zio]) -9/Exiles -8/Mines (discovered 2 exits: *Mat x2) -8/Materials (discovered 2 exits: *Fac / Sto) -7/Factory (discovered 2 exits: *Fac / [*Low]) -7/Lower Caves -7/Lower Caves -6/Factory (discovered 2 exits: *Fac x2) -5/Factory (discovered 2 exits: [*Upp x2]) -5/Upper Caves -5/Upper Caves -4/Factory (discovered 2 exits: [*Upp] / *Arm) -4/Armory History --------- Turn | Location | Event 9 | -11/Scrapyard | Discovered new exit (range 15) 110 | -11/Scrapyard | Entered Materials 301 | -10/Materials | Build established: Mutant 528 | -10/Materials | Core integrity fell below 50% 615 | -10/Materials | Discovered new exit (range 15) 633 | -10/Materials | Entered Mines 686 | -10/Mines | Assisted by bots powering up and referring to "LRC-V3" 716 | -10/Mines | Discovered new exit (range 10) 726 | -10/Mines | Received a Mining Laser from a helpful Derelict 728 | -10/Mines | Entered Materials 728 | -9/Materials | Accompanied by 3 allies 728 | -9/Materials | Evolved 2 slots: Propulsion x1, Utility x1 1241 | -9/Materials | Discovered new exit (range 6) 1275 | -9/Materials | Build established: Scavenger-Mutant 1321 | -9/Materials | Discovered new exit (range 15) 1405 | -9/Materials | Discovered new exit (range 16) 1998 | -9/Materials | Discovered new exit (range 16) 2435 | -9/Materials | Entered Mines 2445 | -9/Mines | Met a Derelict bent on vengeance 2499 | -9/Mines | A Derelict revealed a hidden shortcut to a safe place 2556 | -9/Mines | Build established: Mutant 2606 | -9/Mines | Learned 2 Materials zone layouts 2668 | -9/Mines | Discovered new exit (range 6) 2669 | -9/Mines | Learned location of Storage (-8) 2785 | -9/Mines | Deemed a non-threat by the Exiles lab entrance 2785 | -9/Mines | Discovered new exit (range 5) 2818 | -9/Mines | Excavation squad dispatched 2818 | -9/Mines | A large section of the Mines collapsed 2874 | -9/Mines | Entered Exiles 2913 | -9/Exiles | Met 8R-AWN 2940 | -9/Exiles | Met EX-HEX 2986 | -9/Exiles | Met EX-BIN 3009 | -9/Exiles | Aligned with FarCom system 3010 | -9/Exiles | Given EX-Vault access code 3050 | -9/Exiles | Opened EX-Vault 3065 | -9/Exiles | Found Skeleton Box 3098 | -9/Exiles | Warned to stay clear of 0b10 Research branches 3152 | -9/Exiles | Met EX-DEC 3213 | -9/Exiles | Discovered new exit (range 10) 3226 | -9/Exiles | Left Exiles lab with Skeleton Box 3226 | -9/Exiles | Entered Mines 3230 | -8/Mines | Discovered new exit (range 4) 3337 | -8/Mines | Discovered new exit (range 10) 3463 | -8/Mines | Entered Materials 3463 | -8/Materials | Evolved 2 slots: Propulsion x1, Utility x1 3464 | -8/Materials | Identified exit to Storage 3651 | -8/Materials | Lost 7 parts (1p4n1u1w) 3689 | -8/Materials | Crushed by falling debris 3865 | -8/Materials | Core integrity fell below 50% 4268 | -8/Materials | Build established: Scout 4408 | -8/Materials | Discovered new exit (range 16) 4424 | -8/Materials | Entered Factory 4424 | -7/Factory | Evolved 2 slots: Propulsion x1, Utility x1 4629 | -7/Factory | Repaired Cesium-ion Thruster 4673 | -7/Factory | Repaired Cesium-ion Thruster 4722 | -7/Factory | Build established: Hacker-Mutant 4881 | -7/Factory | Repaired Cesium-ion Thruster? 4943 | -7/Factory | Repaired Cesium-ion Thruster? 4979 | -7/Factory | Repaired Structural Scanner 5076 | -7/Factory | Build established: Hacker-Sprinter 5333 | -7/Factory | Discovered new exit (range 15) 5538 | -7/Factory | Repaired Broken Imp. VTOL Module? 5700 | -7/Factory | Discovered new exit (range 16) 5715 | -7/Factory | Entered Lower Caves 5780 | -7/Lower Caves | Remotely autohacked Sealed Heavy Doors 5858 | -7/Lower Caves | Encountered a Warlord checkpoint 5864 | -7/Lower Caves | Learned Factory garrison access intel 5894 | -7/Lower Caves | Discovered new exit (range 10) 5899 | -7/Lower Caves | Entered another Lower Caves area 5902 | -7/Lower Caves | Encountered a Warlord checkpoint 6002 | -7/Lower Caves | Discovered new exit (range 12) 6005 | -7/Lower Caves | Entered Factory 6005 | -6/Factory | Evolved 2 slots: Utility x2 6006 | -6/Factory | Loaded intel: 4 garrison access locations 6041 | -6/Factory | Crushed by falling debris 6210 | -6/Factory | Crushed by falling debris 6210 | -6/Factory | System corruption reached 10% 6241 | -6/Factory | Lost 3 parts (3u) 6356 | -6/Factory | Discovered new exit (range 5) 6787 | -6/Factory | Build established: Scout 6849 | -6/Factory | Core integrity fell below 50% 6861 | -6/Factory | Cargo convoy interrupted 6901 | -6/Factory | Discovered new exit (range 10) 6921 | -6/Factory | Identified exit to Factory 6922 | -6/Factory | Entered another Factory area 6922 | -5/Factory | Evolved 2 slots: Power x1, Utility x1 7182 | -5/Factory | Discovered new exit (range 7) 7407 | -5/Factory | Lost 8 parts (2p3n3u) 7888 | -5/Factory | Core integrity fell below 50% 7930 | -5/Factory | Lost 8 parts (2p2n2u2w) 7932 | -5/Factory | Discovered new exit (range 13) 7940 | -5/Factory | Entered Upper Caves 7942 | -5/Upper Caves | Learned Factory trap positions 8223 | -5/Upper Caves | Attracted the attention of an 0b10 checkpoint 8233 | -5/Upper Caves | Core integrity fell below 20% 8247 | -5/Upper Caves | Build established: Hacker-Mutant 8422 | -5/Upper Caves | Lost 4 parts (1p1u2w) 8428 | -5/Upper Caves | Spotted B-75 Beast 8474 | -5/Upper Caves | Discovered new exit (range 10) 8481 | -5/Upper Caves | Entered another Upper Caves area 8507 | -5/Upper Caves | Discovered new exit (range 4) 8522 | -5/Upper Caves | Entered Factory 8522 | -4/Factory | Evolved 2 slots: Propulsion x1, Utility x1 8523 | -4/Factory | Loaded intel: 76 trap records 8553 | -4/Factory | Found Prototype Processor 8553 | -4/Factory | Identified Exp. Signal Interpreter 8644 | -4/Factory | Discovered new exit (range 11) 8830 | -4/Factory | Build established: Hacker-Scout 8913 | -4/Factory | Discovered new exit (range 15) 8919 | -4/Factory | Core integrity fell below 50% 8924 | -4/Factory | Identified exit to Armory 8925 | -4/Factory | Entered Armory 8946 | -4/Armory | Lost 4 parts (3u1w) 8957 | -4/Armory | Found Gamma Bomb Array 9125 | -4/Armory | Core integrity fell below 20% 9149 | -4/Armory | Destroyed by G-73 Enforcer with Heavy Laser Last Messages --------------- 09084_ W-44 Eye sends out distress signal. 09086_ W-44 Eye Antigrav System severed. 09102_ Penetrated by Slug. 09115_ Reaction Control System destroyed. 09116_ System corrupted: Matter fused (-6). 09117_ System Shield destroyed. 09119_ Destroyed VTOL Module. 09130_ S-27 Virus destroyed. 09132_ Acquired VTOL Module. 09133_ Acquired 23 matter. 09133_ S-27 Virus destroyed. 09137_ Field Propulsion Array destroyed. 09138_ S-27 Virus destroyed. 09143_ Chainsword destroyed. 09144_ Acquired Lgt. Nuclear Core. 09146_ System corrupted: Component data lost. 09146_ Acquired VTOL Module. 09147_ Adv. Cloaking Device destroyed. 09147_ Field Propulsion Array destroyed. 09147_ Acquired 33 matter. Map ----- +----------------------------------------------------+ | | | | | | | | | | | | | | | | | | | | | | | | | | | ????????????????????????????????????????????????? | | ????????????????????????????????????????????????? | | ????????????????????????????????????????????????? | | ????????????????????????????????????????????????? | | ????????????????????????????????????????????????? | | ????????????????????????????????????????????????? | | ????????????????????????????????????????????????? | | ????????????????????????????????????????????????? | | ????????????????????????????????????????????????? | | ?###########?????????########???????????????????? | | ?# !! ########### #######??###????????? | | ## !! ##"""""## ; [ ## ??? #????????? | | " != ##"" F"#### [[@g ## """"" #????????? | | ## "#"" ""####g %= ## [[[" #????????? | | #######+#### Y ;###g#### "[[[" #????????? | | ??# """""" # ### """"" #????????? | | ??# """""" # + #????????? | | # """""" # ### #????????? | | +g # #?# ##???????? | | ######## # !! # #?#####+####"#####???? | | ?????????? # ! = ! # #####! ####"##"###?? | | ?????????? # # #?? | | ???????????########### #" ###?## T #?? | | ????????????????????? #"T#????# ####+#######? | | ???????????????????? ####????##+#?# #? | | ??????????????????? ?????????????# #? | | ??????????????????####??????????????# """ """ #? | | ????????????????????????????????????# """ """ #? | | ????????????????????????????????????# """ """ #? | | ????????????????????????????????????# #? | | ????????????????????????????????????# """ """ #? | | ????????????????????????????????????# """ """ #? | | ????????????????????????????????????# """ """ #? | | ????????????????????????????????????# #? | | ????????????????????????????????????# = #? | | ????????????????????????????????????#"" #? | | ????????????????????????????????????#"Y // #? | +----------------------------------------------------+ Best States ------------- Heat Dissipation 43 Energy Generation 29 Energy Capacity 300 Matter Stores 300 Matter Capacity 300 Sight Range 22 Robot Scan Range 15 Terrain Scan Density 210 Cloak Strength 4 Power Amplification 20 Armor Coverage 225 Evasion (%) 70 Recoil Reduction 4 Salvage Targeting 2 Offensive Hacking 20 Defensive Hacking 20 Authchip Count 1 Item Schematics ----------------- None Robot Schematics ------------------ None Fabricated ------------ Nothing Repaired ---------- Cesium-ion Thruster | 4% | -7/Factory Cesium-ion Thruster | 40% | -7/Factory Cesium-ion Thruster | 36% | -7/Factory Cesium-ion Thruster | 36% | -7/Factory Structural Scanner | 20% | -7/Factory Imp. VTOL Module | 38% | -7/Factory | Broken Studied --------- None Alien Tech Used ----------------- None Achievements -------------- None Challenges ------------ None Game ------ Seed TowerAlloyBroadsword Manual? 0 Play Time 02:16:39 Cumulative 58.6 hours Start 2026.04.16 @ 00:52:48 End 2026.04.16 @ 03:12:54 Sessions 1 Manual Loads 0 Difficulty Rogue Special Mode None Game No. 115 Rogue 115 Adventurer 0 Explorer 0 Win Type - Total 0 Types 0/0/0/0/0/0/0/0/0/0 Lore% 15 Gallery% 30 Achievement% 20 Wizard Run 0 Options --------- Layout 0 ASCII 0 Keyboard 1 Movement Vi Keybinds 0 Fullscreen 2 Font 18/T_Terminus Map View 76x50 Zoom Use 0% Tactical HUD 1 Map Filters SHIFT_HUE(5) Filters LOW_CONTRAST(10,2,20)|SHIFT_HUE(5) Steam 1 RUN: 72c11462-ebea-45e3-9e16-a729c308433f